[Event "FIDE WCCC Open-08 2024"]
[Site "Montesilvano"]
[Date "2024.11.22"]
[Round "7.46"]
[White "Lee, Yoonjae A"]
[Black "Katsarski, Yan"]
[Result "1-0"]
[ECO "C57"]
[WhiteElo "1546"]
[BlackElo "1418"]
[Annotator "NA RC"]
[PlyCount "61"]
[EventDate "2024.11.18"]
[EventType "swiss"]
[EventCountry "ITA"]
[SourceTitle "playchess.com"]
[Source "ChessBase"]
[SourceQuality "1"]
[TimeControl "5400+30"]

1. e4 {[%emt 0:02:06]} e5 {[%emt 0:01:00]} 2. Nf3 {[%emt 0:00:47]} Nc6 {[%emt 0:01:00]} 3. Bc4 {[%emt 0:03:17]} Nf6 {[%emt 0:02:45]} 4. Ng5 {[%emt 0:00:30]} d5 {[%emt 0:00:32]} 5. exd5 {[%emt 0:00:39]} Nd4 {[%emt 0:00:14]} 6. c3 {[%emt 0:09:47]} b5 {[%emt 0:00:26]} 7. Bb3 {[%emt 0:07:00]} Nxb3 {[%emt 0:02:06]} 8. Qxb3 {[%emt 0:00:20]} Nxd5 {[%emt 0:02:45]} 9. Qxb5+ {[%emt 0:00:57]} Bd7 {[%emt 0:00:45]} 10. Qxd5 {[%emt 0:00:12]} Qxg5 {[%emt 0:00:22]} 11. Qxa8+ {[%emt 0:00:06]} Ke7 {[%emt 0:02:10]} 12. Qf3 {[%emt 0:01:59]} g6 {[%emt 0:03:23]} 13. O-O {[%emt 0:01:08]} Bf5 {[%emt 0:01:19]} 14. b3 {[%emt 0:00:35]} Bg7 {[%emt 0:02:15]} 15. Ba3+ {[%emt 0:00:26]} Kd7 {[%emt 0:06:10]} 16. Qg3 {[%emt 0:01:43]} Qf6 {[%emt 0:03:43]} 17. c4 {[%emt 0:01:28]} e4 {[%emt 0:01:12]} 18. Nc3 {[%emt 0:02:05]} Qa6 {[%emt 0:06:00]} 19. Bb2 {[%emt 0:01:21]} Kc8 {[%emt 0:05:09]} 20. Nd5 {[%emt 0:00:52]} Qb7 {[%emt 0:02:32]} 21. Bxg7 {[%emt 0:00:23]} Rd8 {[%emt 0:01:24]} 22. Ne7+ {[%emt 0:00:39]} Kb8 {[%emt 0:00:57]} 23. Nxf5 {[%emt 0:00:05]} gxf5 {[%emt 0:00:30]} 24. Qc3 {[%emt 0:00:40]} Qc6 {[%emt 0:02:21]} 25. a4 {[%emt 0:01:28]} f4 {[%emt 0:00:34]} 26. a5 {[%emt 0:00:29]} Qg6 {[%emt 0:00:24]} 27. Qf6 {[%emt 0:00:07]} Qg4 {[%emt 0:00:37]} 28. Qxd8+ {[%emt 0:00:10]} Kb7 {[%emt 0:00:19]} 29. a6+ {[%emt 0:00:12]} Kc6 {[%emt 0:01:16]} 30. Qd5+ {[%emt 0:00:03]} Kb6 {[%emt 0:00:48]} 31. Qb5# {[%emt 1:04:26]} 1-0

[Event "FIDE WCCC Open-08 2024"]
[Site "Montesilvano"]
[Date "2024.11.22"]
[Round "7.47"]
[White "Senthilkumar, Tharveen"]
[Black "Contreras Salcedo, Samuel Esteban"]
[Result "1-0"]
[ECO "C55"]
[WhiteElo "1411"]
[BlackElo "1508"]
[Annotator "NA RC"]
[PlyCount "89"]
[EventDate "2024.11.18"]
[EventType "swiss"]
[EventCountry "ITA"]
[SourceTitle "playchess.com"]
[Source "ChessBase"]
[SourceQuality "1"]
[TimeControl "5400+30"]

1. e4 {[%emt 0:00:03]} e5 {[%emt 0:00:14]} 2. Nf3 {[%emt 0:00:06]} Nc6 {[%emt 0:00:08]} 3. Bc4 {[%emt 0:00:17]} Nf6 {[%emt 0:00:52]} 4. Nc3 {[%emt 0:00:23]} Nxe4 {[%emt 0:00:28]} 5. Nxe4 {[%emt 0:00:32]} d5 {[%emt 0:00:07]} 6. Bxd5 {[%emt 0:00:16]} Qxd5 {[%emt 0:00:09]} 7. Nc3 {[%emt 0:00:15]} Qd8 {[%emt 0:00:11]} 8. O-O {[%emt 0:00:18]} Be7 {[%emt 0:00:13]} 9. Re1 {[%emt 0:00:27]} f6 {[%emt 0:00:35]} 10. d3 {[%emt 0:00:32]} Bg4 {[%emt 0:00:28]} 11. h3 {[%emt 0:01:19]} Bh5 {[%emt 0:00:12]} 12. Ne4 {[%emt 0:00:52]} Nd4 {[%emt 0:01:03]} 13. Ned2 {[%emt 0:00:35]} Qd7 {[%emt 0:07:49]} 14. c3 {[%emt 0:02:53]} Nxf3+ {[%emt 0:00:27]} 15. Nxf3 {[%emt 0:00:28]} O-O-O {[%emt 0:01:50]} 16. d4 {[%emt 0:03:26]} Bxf3 {[%emt 0:05:22]} 17. Qxf3 {[%emt 0:02:18]} h5 {[%emt 0:01:34]} 18. dxe5 {[%emt 0:00:44]} fxe5 {[%emt 0:00:26]} 19. Be3 {[%emt 0:01:35]} Rdf8 {[%emt 0:03:15]} 20. Qe4 {[%emt 0:02:17]} Kb8 {[%emt 0:04:22]} 21. Qxe5 {[%emt 0:00:48]} Bd6 {[%emt 0:04:30]} 22. Qd4 {[%emt 0:00:33]} b6 {[%emt 0:02:35]} 23. Rad1 {[%emt 0:00:30]} g5 {[%emt 0:03:55]} 24. Bxg5 {[%emt 0:01:10]} Rhg8 {[%emt 0:01:02]} 25. h4 {[%emt 0:00:56]} Qf7 {[%emt 0:05:32]} 26. Qd2 {[%emt 0:01:58]} Qg7 {[%emt 0:00:50]} 27. g3 {[%emt 0:01:42]} Qf7 {[%emt 0:03:33]} 28. b3 {[%emt 0:00:58]} Bc5 {[%emt 0:01:40]} 29. Rf1 {[%emt 0:00:40]} Rg7 {[%emt 0:04:38]} 30. b4 {[%emt 0:00:31]} Bd6 {[%emt 0:01:26]} 31. Bh6 {[%emt 0:01:15]} Rfg8 {[%emt 0:00:22]} 32. Bxg7 {[%emt 0:00:30]} Rxg7 {[%emt 0:00:26]} 33. Qd5 {[%emt 0:00:32]} Qd7 {[%emt 0:01:10]} 34. Qxh5 {[%emt 0:01:11]} Rg8 {[%emt 0:00:43]} 35. c4 {[%emt 0:00:32]} Qh3 {[%emt 0:00:19]} 36. Qd5 {[%emt 0:03:39]} Rg7 {[%emt 0:04:37]} 37. Qg2 {[%emt 0:00:48]} Qg4 {[%emt 0:00:36]} 38. Rfe1 {[%emt 0:00:38]} Rg8 {[%emt 0:01:04]} 39. c5 {[%emt 0:00:55]} Bf4 {[%emt 0:01:15]} 40. Rd4 {[%emt 0:00:53]} Qg7 {[%emt 0:03:15]} 41. Rxf4 {[%emt 1:10:45]} Qc3 {[%emt 0:37:47]} 42. Rfe4 {[%emt 0:00:00]} a6 {[%emt 0:00:00]} 43. Re8+ {[%emt 0:00:00]} Rxe8 {[%emt 0:00:00]} 44. Rxe8+ {[%emt 0:00:00]} Ka7 {[%emt 0:00:00]} 45. Qa8# {[%emt 0:00:00]} 1-0

[Event "FIDE WCCC Open-08 2024"]
[Site "Montesilvano"]
[Date "2024.11.22"]
[Round "7.49"]
[White "Hakobyan, Sos"]
[Black "Borkowski, Jan"]
[Result "0-1"]
[ECO "B24"]
[WhiteElo "1806"]
[BlackElo "1481"]
[Annotator "NA"]
[PlyCount "45"]
[EventDate "2024.11.18"]
[EventType "swiss"]
[EventCountry "ITA"]
[SourceTitle "playchess.com"]
[Source "ChessBase"]
[SourceQuality "1"]
[TimeControl "5400+30"]

1. e4 {[%emt 0:00:07]} c5 {[%emt 0:00:09]} 2. Nc3 {[%emt 0:00:36]} e6 {[%emt 0:00:13]} 3. g3 {[%emt 0:00:54]} Nc6 {[%emt 0:00:29]} 4. Bg2 {[%emt 0:00:26]} Nf6 {[%emt 0:00:20]} 5. d3 {[%emt 0:01:07]} Be7 {[%emt 0:00:58]} 6. h3 {[%emt 0:03:19]} O-O {[%emt 0:01:51]} 7. f4 {[%emt 0:03:14]} d6 {[%emt 0:01:52]} 8. Nge2 {[%emt 0:02:22]} a6 {[%emt 0:00:36]} 9. O-O {[%emt 0:01:50]} Qc7 {[%emt 0:01:26]} 10. g4 {[%emt 0:04:20]} h6 {[%emt 0:28:47]} 11. Ng3 {[%emt 0:17:48]} Nh7 {[%emt 0:03:19]} 12. Nce2 {[%emt 0:08:59]} Bf6 {[%emt 0:07:18]} 13. Nh5 {[%emt 0:09:26]} Bh4 {[%emt 0:04:13]} 14. Nhg3 {[%emt 0:05:03]} Rb8 {[%emt 0:07:42]} 15. Be3 {[%emt 0:09:12]} Ne7 {[%emt 0:04:24]} 16. Qe1 {[%emt 0:08:38]} f5 {[%emt 0:00:51]} 17. Rd1 {[%emt 0:08:56]} Rf6 {[%emt 0:05:14]} 18. Qd2 {[%emt 0:06:05]} Rg6 {[%emt 0:01:40]} 19. Bf3 {[%emt 0:02:06]} b5 {[%emt 0:01:17]} 20. b3 {[%emt 0:04:26]} Bd7 {[%emt 0:00:26]} 21. Kh2 {[%emt 0:01:33]} Rf8 {[%emt 0:00:47]} 22. a3 {[%emt 0:00:29]} fxg4 {[%emt 0:00:35]} 23. Rh1 {[%emt 0:01:04]} 0-1

[Event "FIDE WCCC Open-08 2024"]
[Site "Montesilvano"]
[Date "2024.11.22"]
[Round "7.50"]
[White "Kim, Rian B"]
[Black "Ameen Akbar T A"]
[Result "1/2-1/2"]
[ECO "D00"]
[WhiteElo "1452"]
[BlackElo "1579"]
[Annotator "NA RC"]
[PlyCount "67"]
[EventDate "2024.11.18"]
[EventType "swiss"]
[EventCountry "ITA"]
[SourceTitle "playchess.com"]
[Source "ChessBase"]
[SourceQuality "1"]
[TimeControl "5400+30"]

1. d4 {[%emt 0:00:05]} d5 {[%emt 0:00:24]} 2. Bf4 {[%emt 0:00:19]} Nf6 {[%emt 0:00:36]} 3. e3 {[%emt 0:01:06]} c5 {[%emt 0:04:17]} 4. c3 {[%emt 0:01:03]} Qb6 {[%emt 0:00:29]} 5. Qb3 {[%emt 0:07:32]} c4 {[%emt 0:07:16]} 6. Qxb6 {[%emt 0:00:17]} axb6 {[%emt 0:00:07]} 7. Nd2 {[%emt 0:01:18]} b5 {[%emt 0:00:34]} 8. b3 {[%emt 0:00:14]} g6 {[%emt 0:01:04]} 9. Ngf3 {[%emt 0:02:27]} Bg7 {[%emt 0:01:58]} 10. Be2 {[%emt 0:03:15]} Nc6 {[%emt 0:00:41]} 11. Ne5 {[%emt 0:01:42]} Bf5 {[%emt 1:18:34]} 12. h4 {[%emt 0:05:34]} h5 {[%emt 0:00:00]} 13. f3 {[%emt 0:04:53]} Nd7 {[%emt 0:00:00]} 14. Nxd7 {[%emt 0:03:47]} Bxd7 {[%emt 0:00:00]} 15. e4 {[%emt 0:01:40]} dxe4 {[%emt 0:00:00]} 16. fxe4 {[%emt 0:00:37]} e5 {[%emt 0:00:00]} 17. dxe5 {[%emt 0:00:54]} Nxe5 {[%emt 0:00:00]} 18. Bxe5 {[%emt 0:01:37]} Bxe5 {[%emt 0:00:00]} 19. bxc4 {[%emt 0:00:21]} bxc4 {[%emt 0:00:00]} 20. Bxc4 {[%emt 0:00:24]} Bxc3 {[%emt 0:00:00]} 21. Rb1 {[%emt 0:00:42]} Bxd2+ {[%emt 0:00:00]} 22. Kxd2 {[%emt 0:02:45]} Rd8 {[%emt 0:00:00]} 23. Ke3 {[%emt 0:00:57]} Bc6 {[%emt 0:00:00]} 24. Rhf1 {[%emt 0:00:45]} O-O {[%emt 0:00:00]} 25. Rf6 {[%emt 0:00:49]} Kg7 {[%emt 0:00:00]} 26. Rbf1 {[%emt 0:00:50]} Rd7 {[%emt 0:00:00]} 27. R6f4 {[%emt 0:07:53]} b5 {[%emt 0:00:00]} 28. Bb3 {[%emt 0:01:21]} f5 {[%emt 0:00:00]} 29. R1f2 {[%emt 0:01:46]} Bxe4 {[%emt 0:00:00]} 30. Bc2 {[%emt 0:01:30]} Bxc2 {[%emt 0:00:00]} 31. Rxc2 {[%emt 0:00:14]} Re8+ {[%emt 0:00:00]} 32. Kf2 {[%emt 0:00:34]} Ra8 {[%emt 0:00:00]} 33. Rb4 {[%emt 0:06:01]} Rad8 {[%emt 0:00:00]} 34. Rbb2 {[%emt 0:02:06]} 1/2-1/2

[Event "FIDE WCCC Open-08 2024"]
[Site "Montesilvano"]
[Date "2024.11.22"]
[Round "7.57"]
[White "Cantoro, Fabrizio"]
[Black "Papadopoulos, Antonios P"]
[Result "0-1"]
[ECO "C10"]
[WhiteElo "1429"]
[BlackElo "1455"]
[Annotator "NA RC"]
[PlyCount "92"]
[EventDate "2024.11.18"]
[EventType "swiss"]
[EventCountry "ITA"]
[SourceTitle "playchess.com"]
[Source "ChessBase"]
[SourceQuality "1"]
[TimeControl "5400+30"]

1. e4 {[%emt 0:00:03]} e6 {[%emt 0:01:41]} 2. d4 {[%emt 0:00:20]} d5 {[%emt 0:00:24]} 3. Nc3 {[%emt 0:00:33]} Nc6 {[%emt 0:00:58]} 4. Bd3 {[%emt 0:00:15]} Nxd4 {[%emt 0:00:37]} 5. Be3 {[%emt 0:00:25]} Nc6 {[%emt 0:00:41]} 6. Nge2 {[%emt 0:00:24]} Nf6 {[%emt 0:00:17]} 7. O-O {[%emt 0:00:31]} d4 {[%emt 0:00:15]} 8. Bb5 {[%emt 0:00:37]} dxe3 {[%emt 0:01:15]} 9. Bxc6+ {[%emt 0:00:00]} bxc6 {[%emt 0:01:03]} 10. Qxd8+ {[%emt 0:00:12]} Kxd8 {[%emt 0:00:40]} 11. Rad1+ {[%emt 0:00:06]} Bd7 {[%emt 0:00:48]} 12. e5 {[%emt 0:00:15]} exf2+ {[%emt 0:02:22]} 13. Rxf2 {[%emt 0:00:20]} Nd5 {[%emt 0:01:05]} 14. Rxf7 {[%emt 0:00:26]} Ke8 {[%emt 0:00:36]} 15. Rdf1 {[%emt 0:00:35]} Ne3 {[%emt 0:00:29]} 16. R1f3 {[%emt 0:00:18]} Ng4 {[%emt 0:00:52]} 17. Ne4 {[%emt 0:00:28]} Nxe5 {[%emt 0:00:27]} 18. Rxd7 {[%emt 0:01:48]} Nxf3+ {[%emt 0:01:29]} 19. gxf3 {[%emt 0:00:31]} Kxd7 {[%emt 1:24:01]} 20. Ng5 {[%emt 0:00:16]} Bc5+ {[%emt 0:00:00]} 21. Kg2 {[%emt 0:00:12]} Rhb8 {[%emt 0:00:00]} 22. Nf4 {[%emt 0:00:15]} Rxb2 {[%emt 0:00:00]} 23. Nfxe6 {[%emt 0:00:19]} Rxc2+ {[%emt 0:00:00]} 24. Kg3 {[%emt 0:00:18]} h6 {[%emt 0:00:00]} 25. Nxc5+ {[%emt 0:00:41]} Rxc5 {[%emt 0:00:00]} 26. Ne4 {[%emt 0:00:15]} Rc2 {[%emt 0:00:00]} 27. f4 {[%emt 0:00:24]} Rf8 {[%emt 0:00:00]} 28. Kg4 {[%emt 0:00:18]} Rc4 {[%emt 0:00:00]} 29. Ng3 {[%emt 0:00:45]} Rfxf4+ {[%emt 0:00:00]} 30. Kh5 {[%emt 0:00:13]} Rh4+ {[%emt 0:00:00]} 31. Kg6 {[%emt 0:00:21]} Rxh2 {[%emt 0:00:00]} 32. Kxg7 {[%emt 0:00:00]} Rg4+ {[%emt 0:00:00]} 33. Kf6 {[%emt 0:00:22]} Rxg3 {[%emt 0:00:00]} 34. Ke5 {[%emt 0:00:20]} Rxa2 {[%emt 0:00:00]} 35. Kd4 {[%emt 0:00:17]} h5 {[%emt 0:00:00]} 36. Ke4 {[%emt 0:00:18]} c5 {[%emt 0:00:00]} 37. Kd5 {[%emt 0:00:13]} h4 {[%emt 0:00:00]} 38. Kxc5 {[%emt 0:00:11]} h3 {[%emt 0:00:00]} 39. Kd5 {[%emt 0:00:11]} h2 {[%emt 0:00:00]} 40. Ke5 {[%emt 0:00:11]} h1=Q {[%emt 0:00:00]} 41. Kf4 {[%emt 0:00:01]} Rf2+ {[%emt 0:00:00]} 42. Ke5 {[%emt 0:00:32]} Qe1+ {[%emt 0:11:30]} 43. Kd5 {[%emt 0:00:17]} Rd2+ {[%emt 0:00:00]} 44. Kc5 {[%emt 0:00:22]} Qc1+ {[%emt 0:00:00]} 45. Kb5 {[%emt 0:00:23]} Rb2+ {[%emt 0:00:00]} 46. Ka6 {[%emt 0:00:20]} Qa1# {[%emt 0:00:00]} 0-1

[Event "FIDE WCCC Open-08 2024"]
[Site "Montesilvano"]
[Date "2024.11.23"]
[Round "8.1"]
[White "Li, Aiden Linyuan"]
[Black "Mani, Sarbartho"]
[Result "1-0"]
[ECO "E01"]
[WhiteElo "1877"]
[BlackElo "1824"]
[Annotator "NA RC"]
[PlyCount "111"]
[EventDate "2024.11.18"]
[EventType "swiss"]
[EventCountry "ITA"]
[SourceTitle "playchess.com"]
[Source "ChessBase"]
[SourceQuality "1"]
[TimeControl "5400+30"]

1. d4 {[%emt 0:00:07]} Nf6 {[%emt 0:00:17]} 2. c4 {[%emt 0:00:05]} e6 {[%emt 0:00:21]} 3. Nf3 {[%emt 0:00:04]} d5 {[%emt 0:00:18]} 4. g3 {[%emt 0:00:08]} c6 {[%emt 0:00:15]} 5. Bg2 {[%emt 0:00:05]} Bd6 {[%emt 0:00:25]} 6. O-O {[%emt 0:00:07]} O-O {[%emt 0:00:08]} 7. Nc3 {[%emt 0:00:04]} Nbd7 {[%emt 0:00:10]} 8. Nd2 {[%emt 0:00:09]} Be7 {[%emt 0:07:14]} 9. e4 {[%emt 0:00:28]} dxe4 {[%emt 0:00:06]} 10. Ndxe4 {[%emt 0:00:27]} Nxe4 {[%emt 0:02:06]} 11. Nxe4 {[%emt 0:00:14]} Nf6 {[%emt 0:00:06]} 12. Be3 {[%emt 0:05:22]} Nxe4 {[%emt 0:01:48]} 13. Bxe4 {[%emt 0:00:22]} Bf6 {[%emt 0:00:16]} 14. Qd3 {[%emt 0:03:36]} g6 {[%emt 0:00:30]} 15. Rad1 {[%emt 0:01:45]} Bg7 {[%emt 0:00:40]} 16. Rd2 {[%emt 0:09:22]} Qe7 {[%emt 0:04:38]} 17. f4 {[%emt 0:08:46]} Rd8 {[%emt 0:00:13]} 18. h4 {[%emt 0:01:22]} c5 {[%emt 0:00:45]} 19. Qa3 {[%emt 0:01:32]} Qc7 {[%emt 0:18:04]} 20. d5 {[%emt 0:03:25]} exd5 {[%emt 0:00:46]} 21. cxd5 {[%emt 0:02:59]} Bh3 {[%emt 0:00:15]} 22. Rc1 {[%emt 0:00:48]} Bf8 {[%emt 0:00:29]} 23. Kh2 {[%emt 0:01:36]} Bg4 {[%emt 0:00:27]} 24. Bxc5 {[%emt 0:09:23]} Rac8 {[%emt 0:02:09]} 25. Rdc2 {[%emt 0:00:25]} Bxc5 {[%emt 0:00:12]} 26. Rxc5 {[%emt 0:00:14]} Qb6 {[%emt 0:00:10]} 27. R1c2 {[%emt 0:06:22]} Rxc5 {[%emt 0:02:37]} 28. Qxc5 {[%emt 0:00:39]} Qxc5 {[%emt 0:00:21]} 29. Rxc5 {[%emt 0:00:05]} Rc8 {[%emt 0:00:03]} 30. Rc3 {[%emt 0:06:56]} Kf8 {[%emt 0:00:49]} 31. d6 {[%emt 0:01:56]} Rxc3 {[%emt 0:01:35]} 32. bxc3 {[%emt 0:00:07]} Ke8 {[%emt 0:00:11]} 33. Bxb7 {[%emt 0:02:36]} Kd7 {[%emt 0:00:01]} 34. Bd5 {[%emt 0:00:10]} f6 {[%emt 0:02:10]} 35. Bg8 {[%emt 0:00:19]} h6 {[%emt 0:02:19]} 36. Bh7 {[%emt 0:00:59]} g5 {[%emt 0:00:05]} 37. hxg5 {[%emt 0:00:59]} hxg5 {[%emt 0:00:07]} 38. Kg2 {[%emt 0:00:08]} Kxd6 {[%emt 0:02:20]} 39. Kf2 {[%emt 0:00:08]} Be6 {[%emt 0:00:09]} 40. a3 {[%emt 0:00:50]} Kc5 {[%emt 0:00:38]} 41. Bd3 {[%emt 0:00:22]} g4 {[%emt 0:00:57]} 42. f5 {[%emt 0:00:38]} Bc4 {[%emt 0:00:02]} 43. Ke3 {[%emt 0:13:39]} a5 {[%emt 0:07:46]} 44. Bxc4 {[%emt 0:00:33]} Kxc4 {[%emt 0:00:02]} 45. Kf4 {[%emt 0:00:10]} Kxc3 {[%emt 0:00:01]} 46. Kxg4 {[%emt 0:00:08]} a4 {[%emt 0:00:08]} 47. Kh5 {[%emt 0:00:15]} Kb3 {[%emt 0:00:05]} 48. g4 {[%emt 0:00:04]} Kxa3 {[%emt 0:00:04]} 49. g5 {[%emt 0:00:05]} fxg5 {[%emt 0:00:20]} 50. f6 {[%emt 0:00:13]} Kb2 {[%emt 0:00:01]} 51. f7 {[%emt 0:00:07]} a3 {[%emt 0:00:03]} 52. f8=Q {[%emt 0:00:08]} a2 {[%emt 0:00:04]} 53. Qb4+ {[%emt 0:00:38]} Ka1 {[%emt 0:00:01]} 54. Qb3 {[%emt 0:00:20]} g4 {[%emt 0:00:11]} 55. Qc2 {[%emt 0:00:03]} g3 {[%emt 0:00:05]} 56. Qc1# {[%emt 0:00:34]} 1-0

[Event "FIDE WCCC Open-08 2024"]
[Site "Montesilvano"]
[Date "2024.11.23"]
[Round "8.2"]
[White "Ulan, Rizat"]
[Black "Badescu, Matei-Andrei"]
[Result "1-0"]
[ECO "B99"]
[WhiteElo "1783"]
[BlackElo "1829"]
[Annotator "NA RC"]
[PlyCount "141"]
[EventDate "2024.11.18"]
[EventType "swiss"]
[EventCountry "ITA"]
[SourceTitle "playchess.com"]
[Source "ChessBase"]
[SourceQuality "1"]
[TimeControl "5400+30"]

1. e4 {[%emt 0:00:06]} c5 {[%emt 0:00:05]} 2. Nf3 {[%emt 0:00:05]} d6 {[%emt 0:00:06]} 3. d4 {[%emt 0:00:05]} cxd4 {[%emt 0:00:04]} 4. Nxd4 {[%emt 0:00:04]} Nf6 {[%emt 0:00:07]} 5. Nc3 {[%emt 0:00:04]} a6 {[%emt 0:00:05]} 6. Bg5 {[%emt 0:00:08]} e6 {[%emt 0:00:07]} 7. f4 {[%emt 0:00:48]} Be7 {[%emt 0:01:12]} 8. Qf3 {[%emt 0:00:09]} h6 {[%emt 0:00:05]} 9. Bh4 {[%emt 0:00:06]} Nbd7 {[%emt 0:00:15]} 10. O-O-O {[%emt 0:00:50]} Qc7 {[%emt 0:00:06]} 11. Be2 {[%emt 0:00:07]} b5 {[%emt 0:09:40]} 12. Bxf6 {[%emt 0:00:22]} Nxf6 {[%emt 0:00:35]} 13. e5 {[%emt 0:00:11]} Bb7 {[%emt 0:00:50]} 14. Qg3 {[%emt 0:00:10]} dxe5 {[%emt 0:00:13]} 15. fxe5 {[%emt 0:00:10]} Nd5 {[%emt 0:00:41]} 16. Nxe6 {[%emt 0:00:14]} fxe6 {[%emt 0:00:09]} 17. Qg6+ {[%emt 0:00:06]} Kd7 {[%emt 0:00:11]} 18. Bg4 {[%emt 0:00:06]} Qxe5 {[%emt 0:00:39]} 19. Nxd5 {[%emt 0:00:05]} Qg5+ {[%emt 0:00:25]} 20. Qxg5 {[%emt 0:00:10]} Bxg5+ {[%emt 0:00:05]} 21. Kb1 {[%emt 0:00:05]} Bxd5 {[%emt 0:00:15]} 22. Rxd5+ {[%emt 0:00:07]} Kc7 {[%emt 0:00:12]} 23. Re5 {[%emt 0:00:13]} Rhe8 {[%emt 0:02:06]} 24. Rhe1 {[%emt 0:00:30]} Rad8 {[%emt 0:01:48]} 25. Rxe6 {[%emt 0:02:34]} Rxe6 {[%emt 0:00:09]} 26. Rxe6 {[%emt 0:00:08]} Rd2 {[%emt 0:03:33]} 27. Bf3 {[%emt 0:01:48]} Rd6 {[%emt 0:02:18]} 28. Re1 {[%emt 0:10:39]} Rd2 {[%emt 0:05:54]} 29. b4 {[%emt 0:05:07]} Rd6 {[%emt 0:02:08]} 30. Re8 {[%emt 0:03:30]} Bf6 {[%emt 0:00:27]} 31. a3 {[%emt 0:06:48]} Rb6 {[%emt 0:05:00]} 32. Ka2 {[%emt 0:05:39]} Rd6 {[%emt 0:00:50]} 33. Kb3 {[%emt 0:01:07]} Kb6 {[%emt 0:01:52]} 34. a4 {[%emt 0:06:14]} bxa4+ {[%emt 0:02:01]} 35. Kxa4 {[%emt 0:00:50]} Rd2 {[%emt 0:01:03]} 36. Kb3 {[%emt 0:02:22]} Rf2 {[%emt 0:00:46]} 37. Rb8+ {[%emt 0:57:13]} Kc7 {[%emt 0:05:17]} 38. Rb7+ {[%emt 0:00:00]} Kc8 {[%emt 0:00:04]} 39. Ra7 {[%emt 0:00:00]} Rf1 {[%emt 0:03:16]} 40. Rxa6 {[%emt 0:00:00]} Rb1+ {[%emt 0:00:09]} 41. Kc4 {[%emt 0:00:00]} Rb2 {[%emt 0:00:03]} 42. c3 {[%emt 0:00:00]} Rc2 {[%emt 0:00:30]} 43. Ra3 {[%emt 0:00:00]} Kc7 {[%emt 0:00:36]} 44. Rb3 {[%emt 0:00:00]} Kb6 {[%emt 0:01:18]} 45. Kd3 {[%emt 0:00:00]} Rc1 {[%emt 0:01:24]} 46. Ra3 {[%emt 0:00:00]} Be7 {[%emt 0:01:58]} 47. Ra8 {[%emt 0:00:00]} Bf6 {[%emt 0:00:26]} 48. Rc8 {[%emt 0:00:00]} Be5 {[%emt 0:00:46]} 49. Rc6+ {[%emt 0:00:00]} Ka7 {[%emt 0:00:33]} 50. h3 {[%emt 0:00:00]} Bf6 {[%emt 0:00:12]} 51. Rc5 {[%emt 0:00:00]} Kb6 {[%emt 0:00:37]} 52. Kd2 {[%emt 0:00:00]} Ra1 {[%emt 0:00:33]} 53. Kc2 {[%emt 0:00:00]} Re1 {[%emt 0:00:52]} 54. Rd5 {[%emt 0:00:00]} Re3 {[%emt 0:00:21]} 55. Rd3 {[%emt 0:00:00]} Rxd3 {[%emt 0:00:18]} 56. Kxd3 {[%emt 0:00:00]} Kb5 {[%emt 0:00:04]} 57. Kc2 {[%emt 0:00:00]} Be5 {[%emt 0:00:43]} 58. Kb3 {[%emt 0:00:00]} Bf6 {[%emt 0:00:27]} 59. c4+ {[%emt 0:00:00]} Kb6 {[%emt 0:00:03]} 60. c5+ {[%emt 0:11:30]} Kb5 {[%emt 0:00:13]} 61. Be2+ {[%emt 0:00:00]} Kc6 {[%emt 0:00:54]} 62. Kc4 {[%emt 0:00:00]} g6 {[%emt 0:00:51]} 63. Bd3 {[%emt 0:00:00]} g5 {[%emt 0:00:06]} 64. Be4+ {[%emt 0:00:00]} Kc7 {[%emt 0:00:06]} 65. b5 {[%emt 0:00:00]} h5 {[%emt 0:00:07]} 66. Bf3 {[%emt 0:00:00]} h4 {[%emt 0:00:06]} 67. b6+ {[%emt 0:00:00]} Kb8 {[%emt 0:00:05]} 68. c6 {[%emt 0:00:00]} Be5 {[%emt 0:00:05]} 69. Kd5 {[%emt 0:04:30]} Bf4 {[%emt 0:00:07]} 70. c7+ {[%emt 0:00:00]} Kb7 {[%emt 0:56:18]} 71. Kc5+ {[%emt 0:00:00]} 1-0

[Event "FIDE WCCC Open-08 2024"]
[Site "Montesilvano"]
[Date "2024.11.23"]
[Round "8.3"]
[White "Protopopescu, Luca"]
[Black "Sattwik Swain"]
[Result "1/2-1/2"]
[ECO "C44"]
[WhiteElo "1818"]
[BlackElo "1787"]
[Annotator "NA RC"]
[PlyCount "69"]
[EventDate "2024.11.18"]
[EventType "swiss"]
[EventCountry "ITA"]
[SourceTitle "playchess.com"]
[Source "ChessBase"]
[SourceQuality "1"]
[TimeControl "5400+30"]

1. e4 {[%emt 0:00:03]} e5 {[%emt 0:00:12]} 2. Nf3 {[%emt 0:00:05]} Nc6 {[%emt 0:00:13]} 3. d4 {[%emt 0:00:07]} exd4 {[%emt 0:00:21]} 4. Bc4 {[%emt 0:01:16]} Bc5 {[%emt 0:00:15]} 5. Ng5 {[%emt 0:00:37]} Nh6 {[%emt 0:00:08]} 6. Nxf7 {[%emt 0:00:17]} Nxf7 {[%emt 0:00:10]} 7. Bxf7+ {[%emt 0:00:06]} Kxf7 {[%emt 0:00:19]} 8. Qh5+ {[%emt 0:00:05]} g6 {[%emt 0:00:07]} 9. Qxc5 {[%emt 0:00:05]} d5 {[%emt 0:00:05]} 10. O-O {[%emt 0:00:18]} dxe4 {[%emt 0:03:28]} 11. c3 {[%emt 0:00:26]} Be6 {[%emt 0:01:42]} 12. cxd4 {[%emt 0:00:42]} Qxd4 {[%emt 0:01:17]} 13. Qg5 {[%emt 0:01:55]} Qe5 {[%emt 0:15:01]} 14. Qh4 {[%emt 0:01:24]} Bc4 {[%emt 0:23:12]} 15. Re1 {[%emt 0:10:40]} Bd3 {[%emt 0:03:31]} 16. Nc3 {[%emt 0:05:41]} Rae8 {[%emt 0:09:39]} 17. Nxe4 {[%emt 0:21:36]} Bxe4 {[%emt 0:07:14]} 18. f3 {[%emt 0:01:01]} Qd4+ {[%emt 0:02:51]} 19. Be3 {[%emt 0:01:13]} Qf6 {[%emt 0:02:22]} 20. Qxf6+ {[%emt 0:03:46]} Kxf6 {[%emt 0:00:12]} 21. fxe4 {[%emt 0:00:07]} Rxe4 {[%emt 0:01:10]} 22. Rf1+ {[%emt 0:01:27]} Ke6 {[%emt 0:03:38]} 23. Bg5 {[%emt 0:01:46]} h6 {[%emt 0:01:40]} 24. Bf4 {[%emt 0:01:59]} Rh7 {[%emt 0:01:08]} 25. Bd2 {[%emt 0:03:12]} g5 {[%emt 0:06:43]} 26. Rf8 {[%emt 0:01:21]} Re2 {[%emt 0:04:23]} 27. Bc3 {[%emt 0:01:04]} Rf7 {[%emt 0:02:02]} 28. Rxf7 {[%emt 0:01:13]} Kxf7 {[%emt 0:00:12]} 29. Rf1+ {[%emt 0:00:14]} Ke7 {[%emt 0:00:09]} 30. h4 {[%emt 0:04:12]} gxh4 {[%emt 0:02:08]} 31. Rf4 {[%emt 0:00:28]} Re6 {[%emt 0:01:36]} 32. Rxh4 {[%emt 0:00:24]} Kf7 {[%emt 0:00:22]} 33. Rf4+ {[%emt 0:00:25]} Kg6 {[%emt 0:02:38]} 34. Kf2 {[%emt 0:00:45]} h5 {[%emt 0:03:23]} 35. Rc4 {[%emt 0:02:27]} 1/2-1/2